fUST/lending_fUST_20250831
["ID","MTS","AMOUNT","RATE_DAILY","PERIOD"]
[382469450,1756638645672,-480.0,0.00017831,2]
[382469453,1756638645682,-480.0,0.00017831,2]
[382469456,1756638645691,-480.66036303,0.00017831,2]
[382469459,1756638645701,-480.0,0.00017831,2]
[382469461,1756638645710,-481.19532937,0.00017831,2]
[382469463,1756638645720,-500.0,0.00017831,2]
[382469466,1756638645729,-480.0,0.00017831,2]
[382469468,1756638645738,-599.56,0.00017831,2]
[382469470,1756638645748,-481.01038569,0.00017831,2]
[382469473,1756638645757,-480.0,0.00017831,2]
[382469475,1756638645766,-481.07907518,0.00017831,2]
[382469477,1756638645775,-754.46,0.00017831,2]
[382469479,1756638645785,-421.55447545,0.00017831,2]
[382469481,1756638645794,-518.21017361,0.00017831,2]
[382469483,1756638645803,-480.0,0.00017831,2]
[382469485,1756638645812,-480.0,0.00017831,2]
[382469487,1756638645821,-480.0,0.00017831,2]
[382469489,1756638645831,-921.53,0.00017831,2]
[382469491,1756638645841,-567.95,0.00017831,2]
[382469493,1756638645850,-694.9,0.00017831,2]
[382469495,1756638645859,-603.54817478,0.00017831,2]
[382469497,1756638645868,-1628.45,0.00017831,2]
[382469499,1756638645877,-526.08976141,0.00017831,2]
[382469501,1756638645887,-480.0,0.00017831,2]
[382469503,1756638645896,-480.00000001,0.00017831,2]
[382469505,1756638645906,-910.94,0.00017831,2]
[382469507,1756638645915,-620.5,0.00017831,2]
[382469509,1756638645924,-480.0,0.00017831,2]
[382469511,1756638645934,-480.0,0.00017831,2]
[382469513,1756638645944,-480.0,0.00017831,2]
[382469515,1756638645958,-1359.56,0.00017831,2]
[382469517,1756638645968,-480.0,0.00017831,2]
[382469519,1756638645977,-656.14,0.00017831,2]
[382469521,1756638645986,-480.0,0.00017831,2]
[382469523,1756638645995,-480.0,0.00017831,2]
[382469525,1756638646004,-303.32377065,0.00017831,2]
[382469527,1756638646013,-480.0,0.00017831,2]
[382469529,1756638646023,-428.70427262,0.00017831,2]
[382469531,1756638646034,-480.0,0.00017831,2]
[382469534,1756638646044,-480.0,0.00017831,2]
[382469536,1756638646054,-480.0,0.00017831,2]
[382469537,1756638646063,-480.0,0.00017831,2]
[382469539,1756638646072,-628.21,0.00017831,2]
[382469541,1756638646081,-628.21,0.00017831,2]
[382469543,1756638646090,-628.21,0.00017831,2]
[382469545,1756638646099,-628.21,0.00017831,2]
[382469547,1756638646110,-628.21,0.00017831,2]
[382469549,1756638646120,-628.21,0.00017831,2]
[382469551,1756638646130,-628.21,0.00017831,2]
[382469553,1756638646139,-628.21,0.00017831,2]
[382469555,1756638646149,-628.21,0.00017831,2]
[382469557,1756638646158,-628.21,0.00017831,2]
[382469559,1756638646167,-628.21,0.00017831,2]
[382469561,1756638646177,-628.21,0.00017831,2]
[382469564,1756638646188,-628.21,0.00017831,2]
[382469566,1756638646199,-628.21,0.00017831,2]
[382469568,1756638646208,-628.21,0.00017831,2]
[382469570,1756638646218,-628.21,0.00017831,2]
[382469572,1756638646227,-628.21,0.00017831,2]
[382469574,1756638646236,-628.21,0.00017831,2]
[382469577,1756638646246,-1733.66,0.00017831,2]
[382469580,1756638646255,-480.0,0.00017831,2]
[382469582,1756638646264,-762.83,0.00017831,2]
[382469583,1756638646274,-505.60382618,0.00017831,2]
[382469585,1756638646285,-501.15,0.00017831,2]
[382469587,1756638646295,-642.22,0.00017831,2]
[382469589,1756638646305,-487.95163791,0.00017831,2]
[382469591,1756638646314,-480.0,0.00017831,2]
[382469593,1756638646324,-480.0,0.00017831,2]
[382469595,1756638646333,-480.0,0.00017831,2]
[382469597,1756638646343,-1223.71,0.00017831,2]
[382469599,1756638646352,-715.88,0.00017831,2]
[382469601,1756638646361,-574.82,0.00017831,2]
[382469603,1756638646370,-1688.46,0.00017831,2]
[382469606,1756638646380,-481.47897705,0.00017831,2]
[382469607,1756638646390,-831.83,0.00017831,2]
[382469610,1756638646399,-858.4,0.00017831,2]
[382469612,1756638646409,-496.54,0.00017831,2]
[382469614,1756638646418,-480.0,0.00017831,2]
[382469616,1756638646427,-480.0,0.00017831,2]
[382469618,1756638646436,-586.48,0.00017831,2]
[382469620,1756638646446,-1076.16,0.00017831,2]
[382469622,1756638646455,-238.03301617,0.00017831,2]
[382469624,1756638646463,-480.0,0.00017831,2]
[382469626,1756638646473,-480.0,0.00017831,2]
[382469628,1756638646482,-480.0,0.00017831,2]
[382469630,1756638646491,-961.35,0.00017831,2]
[382469631,1756638646500,-1399.32,0.00017831,2]
[382469633,1756638646509,-480.0,0.00017831,2]
[382469635,1756638646518,-580.87,0.00017831,2]
[382469637,1756638646527,-1317.7,0.00017831,2]
[382469639,1756638646536,-480.0,0.00017831,2]
[382469641,1756638646545,-872.85,0.00017831,2]
[382469643,1756638646555,-224.4211012,0.00017831,2]
[382469645,1756638646564,-480.0,0.00017831,2]
[382469647,1756638646573,-480.0,0.00017831,2]
[382469649,1756638646583,-480.0,0.00017831,2]
[382469651,1756638646593,-504.7,0.00017831,2]
[382469653,1756638646603,-1284.0,0.00017831,2]
[382469655,1756638646612,-2163.1,0.00017831,2]
[382469672,1756638646622,-480.0,0.00017831,2]
[382469674,1756638646769,-618.42,0.00017831,2]
[382469676,1756638646779,-480.0,0.00017831,2]
[382469678,1756638646788,-480.0,0.00017831,2]
[382469680,1756638646797,-605.84,0.00017831,2]
[382469681,1756638646807,-995.45,0.00017831,2]
[382469682,1756638646816,-598.65,0.00017831,2]
[382469683,1756638646826,-902.36,0.00017831,2]
[382469684,1756638646836,-565.23,0.00017831,2]
[382469685,1756638646845,-480.0,0.00017831,2]
[382469686,1756638646855,-568.55,0.00017831,2]
[382469687,1756638646864,-906.01,0.00017831,2]
[382469688,1756638646874,-1167.98,0.00017831,2]
[382469689,1756638646883,-1358.67,0.00017831,2]
[382469690,1756638646893,-372.0,0.00017868,2]
[382469691,1756638646902,-500.0,0.00017873,2]
[382469692,1756638646912,-213.6364315,0.00017873,2]
[382469693,1756638646921,-500.0,0.00017873,2]
[382469694,1756638646930,-500.0,0.00017873,2]
[382469695,1756638646939,-500.0,0.00017873,2]
[382469696,1756638646952,-500.0,0.00017873,2]
[382469697,1756638646962,-500.0,0.00017873,2]
[382469698,1756638646972,-500.0,0.00017873,2]
[382469699,1756638646981,-500.0,0.00017873,2]
[382469700,1756638646991,-250.94392622,0.00017873,2]
[382469701,1756638647001,-502.15147976,0.00017873,2]
[382469702,1756638647012,-500.0,0.00017873,2]
[382469703,1756638647022,-500.0,0.00017873,2]
[382469704,1756638647031,-500.0,0.00017873,2]
[382469705,1756638647041,-500.0,0.00017873,2]
[382469706,1756638647050,-500.0,0.00017873,2]
[382469707,1756638647060,-500.44109157,0.00017873,2]
[382469708,1756638647069,-500.0,0.00017873,2]
[382469709,1756638647078,-500.0,0.00017873,2]
[382469710,1756638647087,-500.0,0.00017873,2]
[382469711,1756638647097,-500.0,0.00017873,2]
[382469712,1756638647106,-500.0,0.00017873,2]
[382469713,1756638647116,-500.0,0.00017873,2]
[382469714,1756638647125,-500.0,0.00017873,2]
[382469715,1756638647134,-500.0,0.00017873,2]
[382469716,1756638647143,-500.4653867,0.00017873,2]
[382469717,1756638647152,-500.0,0.00017873,2]
[382469718,1756638647162,-500.0,0.00017873,2]
[382469719,1756638647171,-181.91700237,0.00017873,2]
[382469720,1756638647180,-504.83033594,0.00017873,2]
[382469721,1756638647189,-500.0,0.00017873,2]
[382469722,1756638647198,-500.0,0.00017873,2]
[382469723,1756638647209,-213.79428328,0.00017873,2]
[382469724,1756638647218,-500.0,0.00017873,2]
[382469725,1756638647227,-160.77188662,0.00017873,2]
[382469726,1756638647236,-500.0,0.00017873,2]
[382469727,1756638647246,-500.0,0.00017873,2]
[382469728,1756638647255,-500.97484638,0.00017873,2]
[382469729,1756638647264,-500.0,0.00017873,2]
[382469730,1756638647273,-500.0,0.00017873,2]
[382469731,1756638647283,-501.21878673,0.00017873,2]
[382469732,1756638647292,-500.0,0.00017873,2]
[382469733,1756638647302,-500.0,0.00017873,2]
[382469734,1756638647312,-158.65713755,0.00017873,2]
[382469735,1756638647321,-500.0,0.00017873,2]
[382469736,1756638647331,-519.97580936,0.00017873,2]
[382469737,1756638647340,-500.0,0.00017873,2]
[382469738,1756638647350,-518.48245204,0.00017873,2]
[382469739,1756638647359,-500.0,0.00017873,2]
[382469740,1756638647368,-500.39149769,0.00017873,2]
[382469741,1756638647378,-151.0,0.00017873,2]
[382469742,1756638647387,-151.0,0.00017873,2]
[382469743,1756638647396,-151.0,0.00017873,2]
[382469744,1756638647406,-151.0,0.00017873,2]
[382469745,1756638647415,-151.0,0.00017873,2]
[382469746,1756638647424,-151.0,0.00017873,2]
[382469747,1756638647435,-151.0,0.00017873,2]
[382469748,1756638647445,-151.0,0.00017873,2]
[382469749,1756638647454,-185.876676,0.00017873,2]
[382469750,1756638647463,-185.876676,0.00017873,2]
[382469751,1756638647473,-185.876676,0.00017873,2]
[382469752,1756638647482,-185.876676,0.00017873,2]
[382469753,1756638647491,-151.0,0.00017873,2]
[382469754,1756638647501,-151.0,0.00017873,2]
[382469755,1756638647511,-151.0,0.00017873,2]
[382469756,1756638647521,-151.0,0.00017873,2]
[382469757,1756638647531,-151.0,0.00017873,2]
[382469758,1756638647540,-151.0,0.00017873,2]
[382469759,1756638647549,-151.0,0.00017873,2]
[382469760,1756638647559,-167.076088,0.00017873,2]
[382469761,1756638647568,-151.0,0.00017873,2]
[382469762,1756638647578,-151.0,0.000179,2]
[382469763,1756638647587,-151.0,0.000179,2]
[382469764,1756638647596,-151.0,0.000179,2]
[382469765,1756638647606,-480.0,0.00017901,2]
[382469766,1756638647615,-1100.98,0.00017901,2]
[382469767,1756638647624,-253.75978591,0.00017901,2]
[382469768,1756638647633,-1405.73,0.00017901,2]
[382469769,1756638647642,-3273.95,0.00017901,2]
[382469770,1756638647652,-1504.12,0.00017901,2]
[382469771,1756638647663,-3811.81,0.00017901,2]
[382469772,1756638647673,-1377.53,0.00017901,2]
[382469773,1756638647688,-480.0,0.00017901,2]
[382469774,1756638647711,-444.25476246,0.00017901,2]
[382469775,1756638647728,-480.0,0.00017901,2]
[382469776,1756638647738,-480.0,0.00017902,2]
[382469777,1756638647747,-480.0,0.00017902,2]
[382469778,1756638647756,-480.0,0.00017902,2]
[382469779,1756638647765,-4499.38,0.00017902,2]
[382469780,1756638647775,-480.0,0.00017902,2]
[382469781,1756638647785,-151.0,0.00017902,2]
[382469782,1756638647794,-676.18,0.00017902,2]
[382469783,1756638647804,-1216.24,0.00017902,2]
[382469784,1756638647814,-480.0,0.00017902,2]
[382469785,1756638647823,-480.0,0.00017902,2]
[382469786,1756638647833,-1570.05,0.00017902,2]
[382469787,1756638647842,-1963.57,0.00017902,2]
[382469788,1756638647855,-1068.3,0.00017902,2]
[382469789,1756638647864,-1598.4,0.00017902,2]
[382469790,1756638647873,-700.37,0.00017902,2]
[382469791,1756638647882,-484.04,0.00017902,2]
[382469792,1756638647891,-151.0,0.00017902,2]
[382469793,1756638647900,-1552.87,0.00017902,2]
[382469794,1756638647910,-6508.66,0.00017902,2]
[382469795,1756638647919,-151.0,0.00017902,2]
[382469796,1756638647929,-151.0,0.00017902,2]
[382469797,1756638647939,-480.0,0.00017902,2]
[382469798,1756638647949,-1612.64,0.00017902,2]
[382469799,1756638647962,-777.08,0.00017902,2]
[382469800,1756638647974,-5203.96,0.00017902,2]
[382469801,1756638647984,-436.19576782,0.00017902,2]
[382469802,1756638647996,-3156.11,0.00017902,2]
[382469803,1756638648007,-480.0,0.00017902,2]
[382469804,1756638648020,-4374.32,0.00017902,2]
[382469805,1756638648030,-480.0,0.00017902,2]
[382469806,1756638648039,-621.02,0.00017902,2]
[382469807,1756638648049,-1395.91,0.00017902,2]
[382469808,1756638648058,-480.0,0.00017902,2]
[382469809,1756638648068,-571.37089005,0.00017903,2]
[382469810,1756638648077,-500.0,0.00017903,2]
[382469811,1756638648086,-198.0,0.00017903,2]
[382469812,1756638648095,-619.28300412,0.00017903,2]
[382469813,1756638648105,-151.0,0.00017903,2]
[382469814,1756638648115,-1542.0,0.00017903,2]
[382469815,1756638648124,-500.0,0.00017903,2]
[382469816,1756638648133,-239.35076144,0.00017903,2]
[382469817,1756638648143,-151.0,0.00017903,2]
[382469818,1756638648152,-500.0,0.00017903,2]
[382469819,1756638648162,-500.0,0.00017903,2]
[382469820,1756638648171,-500.0,0.00017903,2]
[382469821,1756638648181,-151.0,0.00017903,2]
[382469822,1756638648191,-500.0,0.00017903,2]
[382469823,1756638648200,-500.0,0.00017903,2]
[382469824,1756638648210,-480.0,0.00017903,2]
[382469825,1756638648219,-705.65,0.00017903,2]
[382469826,1756638648229,-768.21,0.00017903,2]
[382469827,1756638648239,-1654.79,0.00017903,2]
[382469828,1756638648249,-480.0,0.00017903,2]
[382469829,1756638648259,-480.0,0.00017903,2]
[382469830,1756638648268,-480.0,0.00017903,2]
[382469831,1756638648277,-480.0,0.00017903,2]
[382469832,1756638648287,-480.0,0.00017903,2]
[382469833,1756638648296,-480.0,0.00017903,2]
[382469834,1756638648306,-574.16,0.00017903,2]
[382469835,1756638648316,-480.0,0.00017903,2]
[382469836,1756638648326,-480.0,0.00017903,2]
[382469837,1756638648336,-480.0,0.00017903,2]
[382469838,1756638648345,-480.0,0.00017903,2]
[382469839,1756638648355,-718.71,0.00017903,2]
[382469840,1756638648364,-481.90214128,0.00017903,2]
[382469841,1756638648373,-571.58,0.00017903,2]
[382469842,1756638648382,-829.2,0.00017903,2]
[382469843,1756638648392,-480.0,0.00017903,2]
[382469844,1756638648402,-480.0,0.00017903,2]
[382469845,1756638648412,-480.0,0.00017903,2]
[382469846,1756638648422,-480.0,0.00017903,2]
[382469847,1756638648432,-480.0,0.00017903,2]
[382469848,1756638648442,-610.71,0.00017903,2]
[382469849,1756638648453,-1194.17,0.00017903,2]
[382469850,1756638648463,-871.46,0.00017903,2]
[382469851,1756638648474,-480.0,0.00017903,2]
[382469852,1756638648484,-518.63693586,0.00017903,2]
[382469853,1756638648494,-480.0,0.00017903,2]
[382469854,1756638648504,-480.0,0.00017903,2]
[382469855,1756638648514,-480.0,0.00017903,2]
[382469856,1756638648524,-480.0,0.00017903,2]
[382469857,1756638648534,-549.82,0.00017903,2]
[382469858,1756638648543,-437.20846435,0.00017903,2]
[382469859,1756638648552,-480.0,0.00017903,2]
[382469860,1756638648564,-1032.08,0.00017903,2]
[382469861,1756638648573,-482.32,0.00017903,2]
[382469862,1756638648583,-480.0,0.00017903,2]
[382469863,1756638648592,-957.25,0.00017903,2]
[382469864,1756638648602,-1278.6,0.00017903,2]
[382469865,1756638648611,-480.0,0.00017903,2]
[382469866,1756638648620,-480.0,0.00017903,2]
[382469867,1756638648629,-793.35,0.00017903,2]
[382469868,1756638648639,-480.0,0.00017903,2]
[382469869,1756638648648,-480.0,0.00017903,2]
[382469870,1756638648658,-494.34,0.00017903,2]
[382469871,1756638648668,-1247.13,0.00017903,2]
[382469872,1756638648678,-480.0,0.00017903,2]
[382469873,1756638648693,-480.0,0.00017903,2]
[382469874,1756638648707,-480.0,0.00017903,2]
[382469875,1756638648716,-526.81,0.00017903,2]
[382469876,1756638648726,-229.42569304,0.00017903,2]
[382469877,1756638648735,-480.0,0.00017903,2]
[382469878,1756638648744,-480.0,0.00017903,2]
[382469879,1756638648754,-1313.76,0.00017903,2]
[382469880,1756638648763,-278.00664309,0.00017903,2]
[382469881,1756638648773,-569.85,0.00017903,2]
[382469882,1756638648782,-1758.62,0.00017903,2]
[382469883,1756638648796,-480.0,0.00017903,2]
[382469884,1756638648809,-899.63,0.00017903,2]
[382469885,1756638648818,-551.65,0.00017903,2]
[382469886,1756638648828,-1326.69,0.00017903,2]
[382469887,1756638648837,-480.0,0.00017903,2]
[382469888,1756638648847,-528.09,0.00017903,2]
[382469889,1756638648857,-480.0,0.00017903,2]
[382469890,1756638648866,-480.0,0.00017903,2]
[382469891,1756638648875,-581.79,0.00017903,2]
[382469892,1756638648885,-480.0,0.00017903,2]
[382469893,1756638648895,-480.0,0.00017903,2]
[382469894,1756638648904,-2457.6,0.00017903,2]
[382469895,1756638648915,-1126.3,0.00017903,2]
[382469896,1756638648924,-1282.96,0.00017903,2]
[382469897,1756638648935,-2156.65,0.00017903,2]
[382469898,1756638648944,-480.0,0.00017903,2]
[382469899,1756638648958,-2204.94,0.00017903,2]
[382469900,1756638648968,-1303.78,0.00017903,2]
[382469901,1756638648978,-2823.29,0.00017903,2]
[382469902,1756638648987,-480.0,0.00017903,2]
[382469903,1756638648997,-961.83,0.00017903,2]
[382469904,1756638649007,-1585.47,0.00017903,2]
[382469905,1756638649016,-480.0,0.00017903,2]
[382469906,1756638649026,-480.0,0.00017903,2]
[382469907,1756638649035,-480.0,0.00017903,2]
[382469908,1756638649045,-480.0,0.00017903,2]
[382469909,1756638649054,-1603.07,0.00017903,2]
[382469910,1756638649064,-480.0,0.00017903,2]
[382469911,1756638649074,-1317.44,0.00017903,2]
[382469912,1756638649084,-480.0,0.00017903,2]
[382469913,1756638649094,-298.80298951,0.00017903,2]
[382469914,1756638649104,-480.0,0.00017903,2]
[382469915,1756638649113,-481.92102351,0.00017903,2]
[382469916,1756638649123,-875.66,0.00017903,2]
[382469917,1756638649132,-495.7,0.00017903,2]
[382469918,1756638649144,-480.0,0.00017903,2]
[382469919,1756638649153,-970.16,0.00017903,2]
[382469920,1756638649162,-480.0,0.00017903,2]
[382469921,1756638649171,-480.0,0.00017903,2]
[382469922,1756638649181,-480.0,0.00017903,2]
[382469923,1756638649191,-480.0,0.00017903,2]
[382469924,1756638649201,-2047.87,0.00017903,2]
[382469925,1756638649211,-1843.78,0.00017903,2]
[382469926,1756638649220,-1636.71,0.00017903,2]
[382469927,1756638649230,-151.0,0.00017903,2]
[382469928,1756638649240,-151.0,0.00017903,2]
[382469929,1756638649252,-151.83901,0.00017903,2]
[382469930,1756638649263,-887.38,0.00017903,2]
[382469931,1756638649282,-480.0,0.00017903,2]
[382469932,1756638649293,-480.0,0.00017903,2]
[382469933,1756638649439,-506.66,0.00017903,2]
[382469934,1756638649449,-151.0,0.00017903,2]
[382469935,1756638649458,-151.0,0.00017903,2]
[382469936,1756638649468,-212.672836,0.00017903,2]
[382469937,1756638649478,-554.55,0.00017903,2]
[382469938,1756638649488,-480.0,0.00017903,2]
[382469939,1756638649498,-665.04,0.00017903,2]
[382469940,1756638649508,-480.0,0.00017903,2]
[382469941,1756638649518,-1959.04,0.00017903,2]
[382469942,1756638649527,-480.0,0.00017903,2]
[382469943,1756638649537,-480.0,0.00017903,2]
[382469944,1756638649547,-151.0,0.00017903,2]
[382469945,1756638649557,-480.0,0.00017903,2]
[382469946,1756638649567,-906.98,0.00017903,2]
[382469947,1756638649576,-247.99788616,0.00017903,2]
[382469948,1756638649586,-1000.0,0.00017903,2]
[382469949,1756638649596,-1000.0,0.00017903,2]
[382469950,1756638649606,-1000.0,0.00017903,2]
[382469951,1756638649615,-1000.0,0.00017903,2]
[382469952,1756638649625,-480.0,0.00017903,2]
[382469953,1756638649634,-1000.0,0.00017903,2]
[382469954,1756638649643,-1000.0,0.00017903,2]
[382469955,1756638649653,-1000.0,0.00017903,2]
[382469956,1756638649662,-1000.0,0.00017903,2]
[382469957,1756638649671,-151.0,0.00017903,2]
[382469958,1756638649681,-1000.0,0.00017903,2]
[382469959,1756638649690,-1000.0,0.00017903,2]
[382469960,1756638649700,-1000.0,0.00017903,2]
[382469961,1756638649711,-652.143732,0.00017903,2]
[382469962,1756638649720,-1000.0,0.00017903,2]
[382469963,1756638649729,-1000.0,0.00017903,2]
[382469964,1756638649738,-1000.0,0.00017903,2]
[382469965,1756638649749,-1000.0,0.00017903,2]
[382469966,1756638649759,-1000.0,0.00017903,2]
[382469967,1756638649768,-1000.0,0.00017903,2]
[382469968,1756638649778,-652.143732,0.00017903,2]
[382469969,1756638649787,-151.0,0.00017903,2]
[382469970,1756638649796,-1000.0,0.00017903,2]
[382469971,1756638649806,-566.36,0.00017903,2]
[382469972,1756638649815,-1000.0,0.00017903,2]
[382469973,1756638649824,-1000.0,0.00017903,2]
[382469974,1756638649834,-652.143732,0.00017903,2]
[382469975,1756638649844,-1000.0,0.00017903,2]
[382469976,1756638649854,-1000.0,0.00017903,2]
[382469977,1756638649863,-1000.0,0.00017903,2]
[382469978,1756638649873,-1000.0,0.00017903,2]
[382469979,1756638649882,-868.837679,0.00017903,2]
[382469980,1756638649891,-480.0,0.00017903,2]
[382469981,1756638649901,-480.0,0.00017904,2]
[382469982,1756638649910,-500.0,0.00017904,2]
[382469983,1756638649919,-480.0,0.00017904,2]
[382469984,1756638649928,-480.0,0.00017904,2]
[382469985,1756638649938,-480.0,0.00017904,2]
[382469986,1756638649950,-480.0,0.00017904,2]
[382469987,1756638649963,-156.167908,0.00017904,2]
[382469988,1756638649973,-151.0,0.00017904,2]
[382469989,1756638649982,-184.400329,0.00017904,2]
[382469990,1756638649992,-151.0,0.00017904,2]
[382469991,1756638650003,-151.0,0.00017904,2]
[382469992,1756638650012,-151.0,0.00017904,2]
[382469993,1756638650021,-480.0,0.00017904,2]
[382469994,1756638650036,-151.0,0.00017904,2]
[382469995,1756638650045,-480.0,0.00017904,2]
[382469996,1756638650054,-151.0,0.00017904,2]
[382469997,1756638650067,-1053.87,0.00017904,2]
[382469998,1756638650076,-951.71,0.00017904,2]
[382469999,1756638650085,-2834.99,0.00017904,2]
[382470000,1756638650095,-1336.81,0.00017904,2]
[382470001,1756638650105,-1733.31,0.00017904,2]
[382470002,1756638650115,-1802.98,0.00017904,2]
[382470003,1756638650125,-1419.27,0.00017904,2]
[382470004,1756638650134,-227.27386968,0.00017904,2]
[382470005,1756638650143,-846.82,0.00017904,2]
[382470006,1756638650153,-810.03,0.00017904,2]
[382470007,1756638650162,-500.0,0.00017904,2]
[382470008,1756638650171,-1027.81,0.00017904,2]
[382470009,1756638650181,-1280.68,0.00017904,2]
[382470010,1756638650191,-480.0,0.00017904,2]
[382470011,1756638650200,-945.67,0.00017904,2]
[382470012,1756638650209,-1513.89,0.00017904,2]
[382470013,1756638650219,-1872.72,0.00017904,2]
[382470014,1756638650228,-480.0,0.00017904,2]
[382470015,1756638650238,-480.0,0.00017904,2]
[382470016,1756638650247,-480.0,0.00017904,2]
[382470017,1756638650256,-984.44,0.00017904,2]
[382470018,1756638650265,-1869.57,0.00017904,2]
[382470019,1756638650275,-732.42,0.00017904,2]
[382470020,1756638650285,-2153.77,0.00017904,2]
[382470021,1756638650295,-1572.18,0.00017904,2]
[382470022,1756638650305,-480.0,0.00017904,2]
[382470023,1756638650314,-12905.7,0.00017904,2]
[382470024,1756638650325,-7621.64,0.00017904,2]
[382470025,1756638650334,-3702.65,0.00017904,2]
[382470026,1756638650344,-737.04,0.00017904,2]
[382470027,1756638650353,-511.51,0.00017904,2]
[382470028,1756638650363,-1881.33,0.00017904,2]
[382470029,1756638650372,-555.76,0.00017904,2]
[382470030,1756638650382,-965.47,0.00017904,2]
[382470031,1756638650391,-9809.04,0.00017904,2]
[382470032,1756638650402,-809.39,0.00017904,2]
[382470033,1756638650411,-9350.55,0.00017904,2]
[382470034,1756638650420,-646.75,0.00017904,2]
[382470035,1756638650430,-480.0,0.00017904,2]
[382470036,1756638650439,-1171.4,0.00017904,2]
[382470037,1756638650448,-500.0,0.00017904,2]
[382470038,1756638650457,-2290.0,0.00017905,2]
[382470039,1756638650467,-168.0,0.00017907,2]
[382470040,1756638650477,-151.0,0.0001793,2]
[382470041,1756638650486,-151.0,0.0001793,2]
[382470042,1756638650495,-151.0,0.0001793,2]
[382470043,1756638650505,-628.21,0.0001793,2]
[382470044,1756638650514,-628.21,0.0001793,2]
[382470045,1756638650523,-628.21,0.0001793,2]
[382470046,1756638650533,-628.21,0.0001793,2]
[382470047,1756638650542,-628.21,0.0001793,2]
[382470048,1756638650552,-628.28109214,0.0001793,2]
[382470049,1756638650561,-151.0,0.00018,2]
[382470050,1756638650570,-500.0,0.00018,2]
[382470051,1756638650580,-480.0,0.00018003,2]
[382470052,1756638650589,-400.0,0.00018003,2]
[382470053,1756638650598,-480.0,0.00018003,2]
[382470054,1756638650608,-1743.49,0.00018003,2]
[382470055,1756638650617,-855.65,0.00018003,2]
[382470056,1756638650626,-480.0,0.00018003,2]
[382470057,1756638650635,-923.58,0.00018003,2]
[382470058,1756638650645,-583.68,0.00018003,2]
[382470059,1756638650654,-496.53,0.00018003,2]
[382470060,1756638650664,-1550.12,0.00018003,2]
[382470061,1756638650674,-480.0,0.00018003,2]
[382470062,1756638650684,-1041.77,0.00018003,2]
[382470063,1756638650693,-480.0,0.00018003,2]
[382470064,1756638650703,-778.0,0.00018003,2]
[382470065,1756638650712,-1297.72,0.00018003,2]
[382470066,1756638650722,-2071.86,0.00018003,2]
[382470067,1756638650732,-480.0,0.00018003,2]
[382470068,1756638650741,-601.76,0.00018003,2]
[382470069,1756638650750,-480.0,0.00018003,2]
[382470070,1756638650759,-723.21,0.00018003,2]
[382470071,1756638650768,-413.3736342,0.00018003,2]
[382470072,1756638650778,-480.0,0.00018003,2]
[382470073,1756638650787,-650.9,0.00018003,2]
[382470074,1756638650797,-546.59,0.00018003,2]
[382470075,1756638650806,-1578.77,0.00018003,2]